Cogmind - Beta 13 @@@ ROGUE MODE // 2024.04.26 @ 13:49:47 Player: Ronin_tempest Result: Self-destructed Performance ------------- Evolutions (4) 2000 Regions Visited (13) 2600 Robots Destroyed (95) 475 Value Destroyed (6523) 6523 Prototype IDs (27) 540 Alien Tech Used (0) 0 Bonus (5671) 5671 TOTAL SCORE: 17809 Bonus ------- High Alert Combat Kills 919 Follower Combat Kills 1152 Entered Garrisons 800 Used RIF Installer 2500 Aligned with FarCom 300 Cogmind --------- Core Integrity 698/850 Matter 290/300 Energy 142/150 System Corruption 0% Temperature Cool (0) Movement Rolling (86) Location -6/Factory Parts ------- > --- POWER (1) -------- Light Angular Momentum Engine > --- PROPULSION (4) --- Wheel Wheel Armored Huge Wheel > --- UTILITY (7) ------ Advanced Heat Sink Large Storage Unit Hacking Suite System Shield Relay Coupler [NC] (29) Relay Coupler [Grunt] (4) Relay Coupler [Brawler] (14) > --- WEAPON (3) ------- Mini Assault Cannon Datajack Powered Hammer > --- INVENTORY (15) --- Improved Ion Engine Light Antimatter Reactor Compact Wheel Improved Heat Sink Improved Medium Armor Plating Improved Medium Armor Plating Relay Coupler [Sentry] (26) Relay Coupler [Sentry] (22) Relay Coupler [Specialist] (22) Heavy Disruptor Cannon Mini Grenade Launcher Peak State ------------ > --- POWER ------------ Light Antimatter Reactor > --- PROPULSION ------- VSS Leg Myomer Leg Biometal Leg Centrium Wheel > --- UTILITY ---------- Large Storage Unit Signal Interpreter Improved Medium Armor Plating Hacking Suite Relay Coupler [Brawler] > --- WEAPON ----------- Heavy Machine Gun Power Maul > --- INVENTORY -------- Light Nuclear Core Cooled Deuterium Engine Armored Huge Wheel Improved Heat Sink Advanced Phase Shifter Improved Medium Armor Plating Improved Medium Armor Plating System Shield Relay Coupler [NC] Relay Coupler [Grunt] Relay Coupler [Duelist] Relay Coupler [Hunter] Mini Grenade Launcher [Rating: 58] Favorites ----------- Power Ion Engine Engine Ion Engine Power Core Light Nuclear Core Reactor Light Antimatter Reactor Propulsion Armored Huge Wheel Treads Light Treads Leg VSS Leg Wheel Armored Huge Wheel Flight Unit Flying Fortress v7 Utility Large Storage Unit Device Improved Terrain Scanner Storage Large Storage Unit Processor Signal Interpreter Hackware Hacking Suite Protection Improved Medium Armor Plating Weapon Power Maul Energy Gun Particle Gun Ballistic Gun Assault Rifle Ballistic Cannon Mini Assault Cannon Launcher Mini Grenade Launcher Special Weapon Remote Datajack Impact Weapon Power Maul Special Melee Weapon Improved Datajack Build | -11 -10 -10 -10 -9 -8 -8 -8 -8 -7 -7 -7 -7 -6 ------- Run | Yrd Mat Min Exi Min Mat Gar Mat Gar Fac Gar Fac Gar Fac Slots Evolved 8 | . . . . . 4 . . . 2 . . . 2 Power . | . . . . . . . . . . . . . . Propulsion 2 | . . . . . 2 . . . . . . . . Utility 5 | . . . . . 2 . . . 2 . . . 1 Weapon 1 | . . . . . . . . . . . . . 1 Parts Attached 98 | 4 4 1 1 5 6 4 4 13 3 24 4 16 9 Power 10 | . . . 1 . 1 . . 1 . 4 . 2 1 Engine 7 | . . . 1 . 1 . . . . 2 . 2 1 Core 2 | . . . . . . . . 1 . 1 . . . Reactor 1 | . . . . . . . . . . 1 . . . Propulsion 20 | 2 2 . . 2 1 . . 2 . 5 1 3 2 Treads 2 | 2 . . . . . . . . . . . . . Leg 6 | . . . . . . . . . . 4 1 1 . Wheel 11 | . 2 . . 2 . . . 2 . 1 . 2 2 Hover . | . . . . . . . . . . . . . . Flight 1 | . . . . . 1 . . . . . . . . Utility 43 | 1 1 1 . . 3 . 3 3 3 13 1 11 3 Device 3 | 1 . . . . 1 . . . . . . . 1 Storage 1 | . 1 . . . . . . . . . . . . Processor 2 | . . . . . 1 . 1 . . . . . . Hackware 26 | . . . . . . . . 3 2 10 . 9 2 Protection 11 | . . 1 . . 1 . 2 . 1 3 1 2 . Artifact . | . . . . . . . . . . . . . . Weapon 25 | 1 1 . . 3 1 4 1 7 . 2 2 . 3 Energy Gun 4 | . 1 . . . 1 2 . . . . . . . Energy Cannon . | . . . . . . . . . . . . . . Ballistic Gun 4 | 1 . . . 1 . . 1 . . 1 . . . Ballistic Cannon 1 | . . . . . . . . . . . . . 1 Launcher 7 | . . . . 2 . 1 . 3 . 1 . . . Special Weapon 3 | . . . . . . . . 3 . . . . . Impact Weapon 3 | . . . . . . 1 . 1 . . . . 1 Slashing Weapon . | . . . . . . . . . . . . . . Piercing Weapon . | . . . . . . . . . . . . . . Special Melee Weapon 3 | . . . . . . . . . . . 2 . 1 Unidentified Prototypes 2 | . . . . . 1 . . . . . . . 1 Parts Lost 24 | . 1 . . . . 4 . 1 . 8 . 5 5 Power 5 | . . . . . . . . . . 2 . 2 1 Propulsion 8 | . 1 . . . . . . 1 . 2 . 3 1 Utility 6 | . . . . . . 2 . . . 3 . . 1 Weapon 5 | . . . . . . 2 . . . 1 . . 2 Highest Loss Streak 4 | . 1 . . . . 3 . 1 . 4 . 3 3 To Critical Strikes . | . . . . . . . . . . . . . . Average Slot Usage (%) 85 | . 98 100 100 100 71 70 58 76 81 86 100 85 73 Engine 7 | . 14 14 14 14 9 9 9 6 . 4 7 6 4 Treads 2 | . 24 . . . . . . . . . . . . Leg 5 | . . . . . . . . . . 10 30 6 . Wheel 8 | . 1 28 28 28 . . . 9 15 9 . 11 9 Flight 1 | . . . . . 9 9 9 3 . . . . . Device 2 | . 14 4 . . 8 8 . . . . . . 1 Storage 8 | . 14 14 14 14 9 9 9 9 7 7 7 7 6 Processor 5 | . . . . . 8 9 9 9 7 7 7 1 . Hackware 13 | . . . . . . . . 5 20 22 23 28 32 Protection 7 | . . 9 14 14 8 8 5 12 7 5 7 5 2 Energy Gun 3 | . 10 14 14 14 9 2 9 . . . . . . Ballistic Gun 3 | . 17 14 14 7 . . 7 . . . . . . Launcher 2 | . . . . 7 9 8 . 6 . 2 1 . . Special Weapon 1 | . . . . . . . . 2 7 4 . . . Impact Weapon 5 | . . . . . . 6 . 8 7 7 7 7 5 Special Melee Weapon 1 | . . . . . . . . . . . 5 7 5 Naked Turns . | . . . . . . . . . . . . . . Heaviest Build 47 | 14 31 33 33 34 41 41 44 44 38 47 40 41 41 Greatest Support 80 | 40 40 20 20 22 50 50 50 56 56 80 80 77 56 Greatest Overweight (x) 2 | . 1 1 1 1 . . . . . 2 . . 1 Average Overweight (x) . | . . 1 1 1 . . . . . . . . . Largest Inventory Capacity 15 | 8 15 15 15 15 15 15 15 15 15 15 15 15 15 Average Capacity 14 | 8 14 15 15 15 15 15 15 15 15 15 15 15 15 Most Carried 15 | 8 15 13 15 15 15 15 15 15 15 15 15 15 15 Average Carried 14 | 6 13 13 13 15 12 14 13 13 14 14 14 14 13 Final Capacity 15 | 8 15 15 15 15 15 15 15 15 15 15 15 15 15 Final Carried 15 | 6 14 13 15 15 15 13 15 15 14 15 15 15 12 Class Distribution -------------------- 34% | Mutant 21% | Bothacker-Mutant 21% | Botlord-Mutant 12% | Scout 8% | Scavenger-Mutant Dominant Class ---------------- Mutant | -10/Materials Mutant | -10/Mines Mutant | -10/Exiles Mutant | -9/Mines Scout | -8/Materials Scout | -8/Garrison Mutant | -8/Materials Mutant | -8/Garrison Bothacker-Mutant | -7/Factory Bothacker-Mutant | -7/Garrison Botlord-Mutant | -7/Factory Botlord-Mutant | -7/Garrison Bothacker-Mutant | -6/Factory Resources | -11 -10 -10 -10 -9 -8 -8 -8 -8 -7 -7 -7 -7 -6 ----------- Run | Yrd Mat Min Exi Min Mat Gar Mat Gar Fac Gar Fac Gar Fac Matter Collected 2196 | 284 164 . . 100 164 228 79 385 35 364 10 233 150 Remotely . | . . . . . . . . . . . . . . Salvage Created 2894 | 111 379 . . 22 181 387 121 410 . 539 32 402 310 Parts 148 | 7 31 . . . 21 22 16 20 . 12 . 4 15 Haulers Intercepted 1 | . 1 . . . . . . . . . . . . Recyclers Shooed . | . . . . . . . . . . . . . . Parts Field Recycled . | . . . . . . . . . . . . . . Retrieved Matter . | . . . . . . . . . . . . . . Parts Self-Destructed . | . . . . . . . . . . . . . . Prevented . | . . . . . . . . . . . . . . Kills | -11 -10 -10 -10 -9 -8 -8 -8 -8 -7 -7 -7 -7 -6 ------- Run | Yrd Mat Min Exi Min Mat Gar Mat Gar Fac Gar Fac Gar Fac Combat Hostiles Destroyed 89 | . 8 . . 4 12 17 4 19 . 11 1 9 4 Melee 12 | . . . . . . 1 . 5 . 3 . 2 1 Guns 18 | . 8 . . 2 4 . 4 . . . . . . Cannons 2 | . . . . . . . . . . . . . 2 AOE 41 | . . . . 2 8 15 . 13 . 3 . . . Classes Destroyed 14 | 2 5 . . 1 1 1 . . . 3 . . 1 Builder 4 | . 1 . . . 1 . 1 . . . . . 1 Tunneler 1 | 1 . . . . . . . . . . . . . Hauler 1 | . 1 . . . . . . . . . . . . Recycler 2 | 1 . . . . . . . . . . . . 1 Watcher 2 | . 1 . . . . . . . . 1 . . . Swarmer 28 | . 3 . . . 7 7 3 7 . . . 1 . Cutter 1 | . . . . . . . . . . 1 . . . Grunt 41 | . 5 . . . 4 9 . 12 . 4 . 6 1 Brawler 1 | . . . . . . 1 . . . . . . . Duelist 4 | . . . . . . . . . . 1 . 2 1 Protector 1 | . . . . . . . . . . . . . 1 Sentry 7 | . . . . . 1 . 1 . . 4 . . 1 Programmer 2 | . . . . . . . . . . 1 1 . . Assembled 4 | . . . . 4 . . . . . . . . . Best Kill Streak 6 | 2 2 . . 4 6 5 3 3 . 3 1 2 3 Combat Bots Only 5 | . 2 . . 4 5 5 3 3 . 3 1 2 2 Max Kills in Single Turn 4 | 1 1 . . 1 2 4 2 2 . 1 1 1 1 Gunslinging . | . . . . . . . . . . . . . . Exploded 4 | . . . . 1 2 4 . 2 . 1 . . . Melee 1 | . . . . . . 1 . 1 . 1 . 1 1 Uniques/NPCs Destroyed . | . . . . . . . . . . . . . . Combat | -11 -10 -10 -10 -9 -8 -8 -8 -8 -7 -7 -7 -7 -6 -------- Run | Yrd Mat Min Exi Min Mat Gar Mat Gar Fac Gar Fac Gar Fac Hostile Shots Fired 691 | . 56 . . 14 45 105 5 60 . 242 10 124 30 Missed 234 | . 9 . . 3 18 43 2 27 . 78 3 42 9 Damage Taken 6273 | . 644 . . 268 342 854 28 627 . 1576 102 1167 665 Core 1064 | . 155 . . 54 73 68 . 88 . 282 . 192 152 Absorbed by Shields 267 | . . . . . . 102 . . . 165 . . . Regen/Repaired (Parts) 88 | . 8 . . . 80 . . . . . . . . Core Remaining (%) 51 | 100 . . . 16 . . . 58 . . . 32 . Volleys Fired 170 | 11 38 . . 12 24 15 6 28 2 24 . . 10 Largest 2 | 2 2 . . 1 2 2 2 1 1 1 . . 1 Hottest 128 | 40 85 . . 65 95 128 91 30 5 30 . . 48 Shots Fired 247 | 22 74 . . 12 42 21 12 28 2 24 . . 10 Gun 150 | 22 74 . . 8 24 9 12 . . 1 . . . Cannon 10 | . . . . . . . . . . . . . 10 Launcher 62 | . . . . 4 18 12 . 22 . 6 . . . Special 25 | . . . . . . . . 6 2 17 . . . Kinetic 92 | 22 53 . . . . . 6 . . 1 . . 10 Thermal 68 | . 21 . . 8 24 9 6 . . . . . . Explosive 62 | . . . . 4 18 12 . 22 . 6 . . . Electromagnetic . | . . . . . . . . . . . . . . Robot Hit Streak 15 | 8 12 . . 15 5 14 7 7 7 4 . . 7 Robot Miss Streak 4 | 2 4 . . 2 3 1 2 2 . 2 . . 1 Penetration Max . | . . . . . . . . . . . . . . Secondary Targets 1 | . 1 . . . . . . . . . . . . Max Gunslinging Chain 1 | . 1 . . . . . . . . . . . . Shots Hit Robots 268 | 17 44 . . 9 23 22 8 34 2 44 10 36 19 Core Hits 137 | 4 20 . . 8 24 29 5 26 . 12 . 2 7 Critical Kills 2 | . . . . . . . . 1 . 1 . . . Critical Parts Destroyed 17 | . . . . . . 1 . 2 . 4 2 7 1 Critical Strikes 20 | . 1 . . . . 1 . 3 . 5 2 7 1 Burn 1 | . 1 . . . . . . . . . . . . Smash 19 | . . . . . . 1 . 3 . 5 2 7 1 Melee Attacks 220 | . . . . . . 15 . 26 . 51 27 88 13 Impact 182 | . . . . . . 15 . 26 . 51 18 66 6 Slashing . | . . . . . . . . . . . . . . Piercing . | . . . . . . . . . . . . . . Sneak Attacks 12 | . . . . . . . . 2 . 2 5 1 2 Combat Hostiles 5 | . . . . . . . . 2 . 2 . 1 . Follow-up Attacks . | . . . . . . . . . . . . . . Damage Inflicted 9207 | 177 595 . . 203 998 1308 149 2072 . 1817 181 1185 522 Guns 1319 | 177 595 . . 91 185 122 149 . . . . . . Cannons 247 | . . . . . . . . . . . . . 247 Explosions 3707 | . . . . 112 813 1012 . 1375 . 395 . . . Melee 3924 | . . . . . . 174 . 697 . 1422 181 1175 275 Ramming 10 | . . . . . . . . . . . . 10 . Kinetic 867 | 177 383 . . . . . 60 . . . . . 247 Thermal 699 | . 212 . . 91 185 122 89 . . . . . . Explosive 3707 | . . . . 112 813 1012 . 1375 . 395 . . . Electromagnetic . | . . . . . . . . . . . . . . Impact 3924 | . . . . . . 174 . 697 . 1422 181 1175 275 Slashing . | . . . . . . . . . . . . . . Piercing . | . . . . . . . . . . . . . . Highest Corruption 5 | . . . . . . . . . . 2 5 5 . Average Corruption 3 | . . . . . . . . . . 1 2 5 . Corruption Purged . | . . . . . . . . . . . . . . Corruption Blocked . | . . . . . . . . . . . . . . Effects 51 | . . . . . . . . . . 3 10 38 . Message Errors 16 | . . . . . . . . . . 1 3 12 . Matter Fused 11 | . . . . . . . . . . . 3 8 . Heat Flow Errors 5 | . . . . . . . . . . . 1 4 . Energy Discharges 8 | . . . . . . . . . . . 2 6 . Parts Rejected 1 | . . . . . . . . . . . . 1 . Data Loss (minor) 6 | . . . . . . . . . . 1 1 4 . Data Loss (major) 3 | . . . . . . . . . . 1 . 2 . Alerts 1 | . . . . . . . . . . . . 1 . Overload Shots . | . . . . . . . . . . . . . . Overflow Damage 1239 | . . . . . 17 73 . 219 . 339 96 483 12 Projectiles . | . . . . . . . . . . . . . . Explosions 74 | . . . . . 17 26 . 14 . 17 . . . Melee 1165 | . . . . . . 47 . 205 . 322 96 483 12 Knockbacks 28 | . . . . . . 2 . 5 . 5 . 9 7 Impact 21 | . . . . . . 2 . 4 . 5 . 9 1 Kinetic 5 | . . . . . . . . . . . . . 5 Secondary 2 | . . . . . . . . 1 . . . . 1 Self-Inflicted Damage 394 | . . . . 104 1 72 . 146 . 67 . 4 . Shots 20 | . . . . 3 1 7 . 7 . 2 . . . Rammed 2 | . . . . . . . . . . . . 2 . Targets Rammed 2 | . . . . . . . . . . . . 2 . Kicked . | . . . . . . . . . . . . . . Crushed . | . . . . . . . . . . . . . . Highest Temperature 394 | . 384 . . 172 394 147 81 23 . 7 203 257 18 Average Temperature 101 | . 121 . . 81 139 41 36 11 . 4 109 106 18 Received Heat Transfer 1710 | . 387 . . . 153 158 . 252 . 327 . 318 115 Effects 8 | . 5 . . . 2 . . . . . . 1 . Energy Bleed 1 | . . . . . 1 . . . . . . . . Interference 6 | . 5 . . . . . . . . . . 1 . Matter Decay 1 | . . . . . 1 . . . . . . . . Siege Activations . | . . . . . . . . . . . . . . Robots Corrupted . | . . . . . . . . . . . . . . Combat Hostiles . | . . . . . . . . . . . . . . Parts Fried 17 | . . . . . . 1 . 3 . 4 1 6 2 Impact Corruptions 42 | . . . . . . 1 . 6 . 12 5 17 1 Robots Melted . | . . . . . . . . . . . . . . Combat Hostiles . | . . . . . . . . . . . . . . Parts Melted . | . . . . . . . . . . . . . . Heat Transferred 1628 | . 555 . . 222 407 259 185 . . . . . . Parts Sabotaged . | . . . . . . . . . . . . . . Parts Stolen . | . . . . . . . . . . . . . . Parts Stripped . | . . . . . . . . . . . . . . Power Chain Reactions . | . . . . . . . . . . . . . . Alert | -11 -10 -10 -10 -9 -8 -8 -8 -8 -7 -7 -7 -7 -6 ------- Run | Yrd Mat Min Exi Min Mat Gar Mat Gar Fac Gar Fac Gar Fac Peak Influence 1604 | 10 188 1 . 24 439 818 534 1275 760 1604 845 955 589 Initial 842 | . 6 1 . . 9 201 398 302 669 392 842 415 501 Average 576 | 5 35 1 . 8 177 475 459 870 731 992 727 621 510 Maximum Alert Level 5 | . . . . . 2 3 2 4 3 5 3 3 2 Low Security (%) 23 | 100 100 100 . 100 66 . . . . . . . . Level 1 6 | . . . . . 24 50 34 3 . 2 . . 5 Level 2 29 | . . . . . 9 38 65 27 23 8 58 66 94 Level 3 30 | . . . . . . 11 . 42 76 62 41 33 . Level 4 8 | . . . . . . . . 27 . 25 . . . Level 5 . | . . . . . . . . . . 1 . . . High Security . | . . . . . . . . . . . . . . Max Security . | . . . . . . . . . . . . . . Squads Dispatched 8 | . . . . . 2 . . . 1 . 1 . 4 Investigation 1 | . . . . . . . . . . . . . 1 Extermination 1 | . . . . . . . . . . . 1 . . Reinforcement 3 | . . . . . 2 . . . . . . . 1 Assault 2 | . . . . . . . . . 1 . . . 1 Garrison 1 | . . . . . . . . . . . . . 1 Intercept . | . . . . . . . . . . . . . . Searches Triggered . | . . . . . . . . . . . . . . Construction Impeded . | . . . . . . . . . . . . . . Haulers Reinforced . | . . . . . . . . . . . . . . Active Scanning Responses . | . . . . . . . . . . . . . . Cargo Convoy Interrupts . | . . . . . . . . . . . . . . Alert ID Control Effect 12 | . . . . . . . . . . 2 . 7 3 Stealth | -11 -10 -10 -10 -9 -8 -8 -8 -8 -7 -7 -7 -7 -6 --------- Run | Yrd Mat Min Exi Min Mat Gar Mat Gar Fac Gar Fac Gar Fac Distress Signals 8 | . 1 . . . 1 . 4 . . . . . 2 Communications Jammed . | . . . . . . . . . . . . . . Distress Signals . | . . . . . . . . . . . . . . Times Spotted 189 | . 13 . . 4 18 24 9 26 1 34 5 34 21 Peak Tracking Total 9 | . 5 . . 3 6 7 5 4 1 8 3 7 9 Tactical Retreats 13 | . . . . . 1 4 2 2 . 1 . 1 2 Traps | -11 -10 -10 -10 -9 -8 -8 -8 -8 -7 -7 -7 -7 -6 ------- Run | Yrd Mat Min Exi Min Mat Gar Mat Gar Fac Gar Fac Gar Fac Traps Triggered 29 | . . . . . . 10 . 7 . 8 1 2 1 Indirectly . | . . . . . . . . . . . . . . Trap Hack Attempts 51 | . . . . . . . . . . . . 51 . Triggered 2 | . . . . . . . . . . . . 2 . Disarmed 1 | . . . . . . . . . . . . 1 . Reprogrammed 2 | . . . . . . . . . . . . 2 . Reused . | . . . . . . . . . . . . . . Traps Extracted . | . . . . . . . . . . . . . . Installed . | . . . . . . . . . . . . . . Triggered . | . . . . . . . . . . . . . . Machines | -11 -10 -10 -10 -9 -8 -8 -8 -8 -7 -7 -7 -7 -6 ---------- Run | Yrd Mat Min Exi Min Mat Gar Mat Gar Fac Gar Fac Gar Fac Machines Disabled 24 | . . . . . 3 2 . 8 . 5 . 6 . Max in Single Turn 3 | . . . . . 3 1 . 1 . 1 . 1 . Garrison Access 1 | . . . . . . . . . . . . . 1 Garrison Relay 17 | . . . . . . 2 . 4 . 5 . 6 . Machines Repaired . | . . . . . . . . . . . . . . Machines Dismantled . | . . . . . . . . . . . . . . Machines Sabotaged . | . . . . . . . . . . . . . . Overloaded Fab Kills . | . . . . . . . . . . . . . . Hacking | -11 -10 -10 -10 -9 -8 -8 -8 -8 -7 -7 -7 -7 -6 --------- Run | Yrd Mat Min Exi Min Mat Gar Mat Gar Fac Gar Fac Gar Fac Machines Accessed 36 | . 6 . 1 1 8 . 3 4 2 4 4 2 1 Terminals 26 | . 5 . . . 6 . 2 4 1 4 1 2 1 Fabricators . | . . . . . . . . . . . . . . Repair Stations 3 | . 1 . . . 1 . . . . . 1 . . Recycling Units 1 | . . . . . . . . . . . 1 . . Scanalyzers . | . . . . . . . . . . . . . . Garrison Access 4 | . . . . . 1 . 1 . 1 . 1 . . Total Hacks 77 | . 15 . 1 1 26 . 5 7 3 6 7 2 4 Successful 43 | . 7 . 1 1 13 . 3 3 1 4 5 2 3 Failed 34 | . 8 . . . 13 . 2 4 2 2 2 . 1 Catastrophic 4 | . . . . . 1 . 1 . . 1 . . 1 Database Lockouts . | . . . . . . . . . . . . . . Manual 36 | . 10 . 1 . 17 . 1 . 2 . 3 . 2 Terminals 62 | . 13 . . . 23 . 4 7 2 6 1 2 4 Fabricators . | . . . . . . . . . . . . . . Repair Stations 6 | . 2 . . . 2 . . . . . 2 . . Recycling Units 3 | . . . . . . . . . . . 3 . . Scanalyzers . | . . . . . . . . . . . . . . Garrison Access 4 | . . . . . 1 . 1 . 1 . 1 . . Terminal Hacks 22 | . 1 . 1 1 6 . 1 3 . 4 1 2 2 Record 2 | . . . . . 1 . . . . . . . 1 Robot Analysis 1 | . . . . . 1 . . . . . . . . Prototype ID Bank 1 | . . . . . 1 . . . . . . . . Open Door 3 | . . . . 1 . . . 1 . 1 . . . Open DSF 1 | . . . . . . . . . . . 1 . . Emergency Access Points 2 | . . . . . . . . . . 1 . 1 . Alert Level 1 | . . . . . 1 . . . . . . . . Unreport Threat 2 | . . . . . 1 . 1 . . . . . . Locate Traps 1 | . . . . . 1 . . . . . . . . Hauler Manifests 1 | . 1 . . . . . . . . . . . . Zone Layout 1 | . . . . . . . . . . . . . 1 Garrison Registry 1 | . . . . . . . . . . 1 . . . Patrol Navigation 1 | . . . . . . . . 1 . . . . . Security Stations 3 | . . . . . . . . 1 . 1 . 1 . Derelict Proto ID Bank 1 | . . . 1 . . . . . . . . . . Fabricator Hacks . | . . . . . . . . . . . . . . Repair Station Hacks 5 | . 2 . . . 2 . . . . . 1 . . Scan Component 3 | . 1 . . . 1 . . . . . 1 . . Repair 2 | . 1 . . . 1 . . . . . . . . Recycling Unit Hacks . | . . . . . . . . . . . . . . Scanalyzer . | . . . . . . . . . . . . . . Garrison Access Hacks 4 | . . . . . 1 . 1 . 1 . 1 . . Unlock Access 4 | . . . . . 1 . 1 . 1 . 1 . . Unauthorized Hacks 12 | . 4 . . . 4 . 1 . . . 2 . 1 Terminals 10 | . 4 . . . 4 . 1 . . . . . 1 Track 1 | . . . . . 1 . . . . . . . . Assimilate 3 | . 2 . . . . . 1 . . . . . . Botnet 6 | . 2 . . . 3 . . . . . . . 1 Fabricators . | . . . . . . . . . . . . . . Repair Stations . | . . . . . . . . . . . . . . Recycling Units 2 | . . . . . . . . . . . 2 . . Reject 1 | . . . . . . . . . . . 1 . . Mask 1 | . . . . . . . . . . . 1 . . Scanalyzers . | . . . . . . . . . . . . . . Garrison Access . | . . . . . . . . . . . . . . Data Cores Recovered . | . . . . . . . . . . . . . . Used . | . . . . . . . . . . . . . . Hacking Detections 30 | . 6 . . . 7 . 2 4 2 3 3 2 1 Full Trace Events 2 | . . . . . 1 . . . . . . . 1 Feedback Events . | . . . . . . . . . . . . . . Feedback Blocked . | . . . . . . . . . . . . . . Robot Schematics Acquired . | . . . . . . . . . . . . . . Robots Built . | . . . . . . . . . . . . . . Authchips . | . . . . . . . . . . . . . . Time . | . . . . . . . . . . . . . . Total Robot Build Rating . | . . . . . . . . . . . . . . Part Schematics Acquired . | . . . . . . . . . . . . . . Parts Built . | . . . . . . . . . . . . . . Authchips . | . . . . . . . . . . . . . . Time . | . . . . . . . . . . . . . . Total Part Build Rating . | . . . . . . . . . . . . . . Parts Repaired 2 | . 1 . . . 1 . . . . . . . . Time 52 | . 26 . . . 26 . . . . . . . . Parts Recycled . | . . . . . . . . . . . . . . Recycled Matter . | . . . . . . . . . . . . . . Retrieved Matter . | . . . . . . . . . . . . . . Retrieved Components . | . . . . . . . . . . . . . . Parts Scanalyzed . | . . . . . . . . . . . . . . Part Schematics Acquired . | . . . . . . . . . . . . . . Parts Damaged . | . . . . . . . . . . . . . . Bothacking | -11 -10 -10 -10 -9 -8 -8 -8 -8 -7 -7 -7 -7 -6 ------------ Run | Yrd Mat Min Exi Min Mat Gar Mat Gar Fac Gar Fac Gar Fac Used RIF Installer 5 | . . . . . . 1 . 1 . 2 . 1 . Command Fork 1 | . . . . . . . . . . . . 1 . Watcher Feeds 1 | . . . . . . . . . . 1 . . . Alert ID Control 1 | . . . . . . . . . . 1 . . . Program Shield 1 | . . . . . . . . 1 . . . . . Robots Hacked 39 | . . . . . . . . 6 2 9 3 14 5 Non-combat 6 | . . . . . . . . . 2 . 3 . 1 Combat 33 | . . . . . . . . 6 . 9 . 14 4 Robot Hacks Applied 40 | . . . . . . . . 6 2 9 3 15 5 parse_system 6 | . . . . . . . . . 1 1 2 1 1 find_recycling 2 | . . . . . . . . . 1 . 1 . . disable_weapons 1 | . . . . . . . . . . 1 . . . go_dormant 2 | . . . . . . . . 1 . . . . 1 overwrite_iff 6 | . . . . . . . . 1 . 1 . 4 . formatsys_high 23 | . . . . . . . . 4 . 6 . 10 3 Relay Couplers Released 74 | . . . . . . 9 . 18 . 21 . 23 3 Machine Destruction 74 | . . . . . . 9 . 18 . 21 . 23 3 Attached 24 | . . . . . . . . 3 1 10 . 9 1 Fabnet Peak Effective % . | . . . . . . . . . . . . . . Robots Rewired 10 | . . . . . . . . 4 1 5 . . . Allies Hacked 1 | . . . . . . . . . . 1 . . . Hacks Repelled . | . . . . . . . . . . . . . . Allies | -11 -10 -10 -10 -9 -8 -8 -8 -8 -7 -7 -7 -7 -6 -------- Run | Yrd Mat Min Exi Min Mat Gar Mat Gar Fac Gar Fac Gar Fac Total Allies 48 | . . 2 . 3 . . 1 9 1 12 . 17 3 Largest Group 9 | . . 2 2 3 . . 1 6 6 9 . 4 3 Highest-Rated Group 221 | . . 41 41 40 . . 10 154 154 221 . 64 93 Highest-Rated Ally 47 | . . 31 31 16 . . 10 31 40 40 . 32 47 Total Orders . | . . . . . . . . . . . . . . Ally Attacks 228 | . . . . 27 . . . 13 21 104 . 51 12 Total Damage 4793 | . . . . 285 . . . 186 369 2631 . 991 331 Kills 45 | . . . . 5 . . . 4 5 21 . 7 3 Allies Corrupted 2 | . . . . . . . . . . 2 . . . Allies Melted . | . . . . . . . . . . . . . . Intel | -11 -10 -10 -10 -9 -8 -8 -8 -8 -7 -7 -7 -7 -6 ------- Run | Yrd Mat Min Exi Min Mat Gar Mat Gar Fac Gar Fac Gar Fac Robot Analysis Total 1 | . . . . . 1 . . . . . . . . Derelict Logs Recovered 1 | . . . . 1 . . . . . . . . . Drone Launches . | . . . . . . . . . . . . . . Drone Recoveries . | . . . . . . . . . . . . . . Exploration | -11 -10 -10 -10 -9 -8 -8 -8 -8 -7 -7 -7 -7 -6 ------------- Run | Yrd Mat Min Exi Min Mat Gar Mat Gar Fac Gar Fac Gar Fac Turns Passed 11857 | 88 1252 290 206 700 690 891 215 1603 408 2286 982 1818 428 Spaces Moved 8180 | 31 608 279 213 534 689 609 268 1138 288 1322 787 1105 309 Core . | . . . . . . . . . . . . . . Treads 569 | 31 538 . . . . . . . . . . . . Legs 1546 | . . . . . . . . . . 497 787 262 . Wheels 3842 | . 70 279 213 534 . . . 481 288 825 . 843 309 Hover . | . . . . . . . . . . . . . . Flight 2223 | . . . . . 689 609 268 657 . . . . . Fastest Speed 50 | 160 95 95 95 95 50 50 50 50 100 100 102 100 90 Average Speed 92 | 160 159 95 95 98 50 50 50 71 100 104 105 100 104 Slowest Speed 240 | 160 240 95 95 100 50 50 50 100 100 130 110 106 115 Overloaded Moves . | . . . . . . . . . . . . . . Propulsion Burnouts . | . . . . . . . . . . . . . . Robots Hopped 6 | . . . . . 4 1 1 . . . . . . Cave-ins Triggered . | . . . . . . . . . . . . . . Exploration Rate (%) 47 | 4 88 47 43 73 46 48 29 80 7 92 20 82 9 Regions Visited 13 Branch Regions 3 Pre-discovered Areas 1 | . . . . 1 . . . . . . . . . Known Exits Taken 4 | . . . . . 1 . 1 . 1 . 1 . . Unknown Exits Taken 5 | 1 1 1 1 1 . . . . . . . . . Scrap Searched 2 | . . . . 2 . . . . . . . . . Spaces Dug 22 | . . . . . . 3 . . . . 13 6 . Terrain Destroyed 351 | . . . . 31 121 12 . 130 . 38 13 6 . Melee 22 | . . . . . . 3 . . . . 13 6 . Projectile . | . . . . . . . . . . . . . . AOE 329 | . . . . 31 121 9 . 130 . 38 . . . Terrain Rammed . | . . . . . . . . . . . . . . Walls Destroyed . | . . . . . . . . . . . . . . Machines Disabled . | . . . . . . . . . . . . . . Actions | -11 -10 -10 -10 -9 -8 -8 -8 -8 -7 -7 -7 -7 -6 --------- Run | Yrd Mat Min Exi Min Mat Gar Mat Gar Fac Gar Fac Gar Fac Total 11885 | 49 819 303 218 692 989 1141 341 1853 408 2100 901 1682 389 Wait 2775 | . 159 23 . 140 260 421 41 525 107 606 71 382 40 Move 8156 | 30 607 278 212 533 680 606 266 1137 287 1321 786 1104 309 Hop 6 | . . . . . 4 1 1 . . . . . . Pick Up 79 | 2 10 . 2 . 8 . 11 10 2 8 4 17 5 Fast Attach 35 | 1 . . . 2 3 . 2 1 1 14 3 5 3 Attach 32 | . 2 . 1 . 3 2 2 5 2 4 . 6 5 Detach 16 | . . . . . 1 . 1 2 1 6 1 4 . Swap 31 | 3 2 1 . 3 . 2 . 7 . 6 1 5 1 Drop 57 | 2 1 1 3 2 6 . 11 5 2 6 8 8 2 Fire 170 | 11 38 . . 12 24 15 6 28 2 24 . . 10 Melee 220 | . . . . . . 15 . 26 . 51 27 88 13 Ram 2 | . . . . . . . . . . . . 2 . Kick . | . . . . . . . . . . . . . . Crush . | . . . . . . . . . . . . . . Escape Stasis 186 | . . . . . . 79 . 63 . 35 . 9 . Rewire 69 | . . . . . . . . 44 4 19 . 1 1 Trap 51 | . . . . . . . . . . . . 51 . Miscellaneous . | . . . . . . . . . . . . . . Route ------- -11/Scrapyard -10/Materials (discovered 4 exits: [*Mat x3] / [*Min]) -10/Mines (discovered 2 exits: [*Mat] / *Exi) -10/Exiles -9/Mines -8/Materials (discovered 2 exits: *Fac / Gar) -8/Garrison (discovered 2 exits: *Mat x2) -8/Materials -8/Garrison (discovered 3 exits: *Fac x3) -7/Factory -7/Garrison (discovered 3 exits: *Fac x3) -7/Factory -7/Garrison (discovered 2 exits: *Fac x2) -6/Factory History --------- Turn | Location | Event 4 | -11/Scrapyard | Discovered new exit (range 3) 89 | -11/Scrapyard | Entered Materials 317 | -10/Materials | Build established: Mutant 391 | -10/Materials | Discovered new exit (range 5) 651 | -10/Materials | Discovered new exit (range 8) 837 | -10/Materials | Repaired Datajack 884 | -10/Materials | Discovered new exit (range 4) 1118 | -10/Materials | Core integrity fell below 50% 1173 | -10/Materials | Discovered new exit (range 13) 1341 | -10/Materials | Entered Mines 1359 | -10/Mines | Met a Derelict bent on vengeance 1458 | -10/Mines | Deemed a non-threat by the Exiles lab entrance 1458 | -10/Mines | Discovered new exit (range 5) 1560 | -10/Mines | Discovered new exit (range 6) 1631 | -10/Mines | Entered Exiles 1631 | -10/Exiles | Accompanied by 2 allies 1654 | -10/Exiles | Met 8R-AWN 1661 | -10/Exiles | Led the pair of lost Derelicts to a safe place 1670 | -10/Exiles | Met EX-HEX 1703 | -10/Exiles | Met EX-BIN 1714 | -10/Exiles | Aligned with FarCom system 1715 | -10/Exiles | Given EX-Vault access code 1737 | -10/Exiles | Opened EX-Vault 1744 | -10/Exiles | Found Flying Fortress v7 1766 | -10/Exiles | Warned to stay clear of 0b10 Research branches 1827 | -10/Exiles | Discovered new exit (range 14) 1837 | -10/Exiles | Left Exiles lab with Flying Fortress v7 1837 | -10/Exiles | Entered Mines 1901 | -9/Mines | Met a Derelict who couldn't figure out how to use a Trap Extractor 2225 | -9/Mines | Assisted by bots powering up and referring to "LRC-V3" 2247 | -9/Mines | Assembled infested the area 2252 | -9/Mines | Assisted by a Guerilla fighting off Assembled 2296 | -9/Mines | Core integrity fell below 20% 2310 | -9/Mines | Lost 4 allies 2479 | -9/Mines | Learned location of Zion (-6) 2504 | -9/Mines | Found a damaged Exp. Sensor Array with a note attached 2528 | -9/Mines | Discovered new exit (range 10) 2537 | -9/Mines | Entered Materials 2537 | -8/Materials | Evolved 4 slots: Propulsion x2, Utility x2 2839 | -8/Materials | Build established: Scout 3069 | -8/Materials | Discovered new exit (range 16) 3106 | -8/Materials | Repaired Lgt. Armor Plating 3109 | -8/Materials | Identified exit to Factory 3180 | -8/Materials | Identified exit to Garrison 3227 | -8/Materials | Entered Garrison 3253 | -8/Garrison | Triggered checkpoint 3321 | -8/Garrison | Triggered checkpoint 3373 | -8/Garrison | Garrison Relay disabled 3675 | -8/Garrison | Triggered checkpoint 3696 | -8/Garrison | Garrison Relay disabled 3854 | -8/Garrison | Discovered new exit (range 10) 3858 | -8/Garrison | Identified exit to Materials 4074 | -8/Garrison | Discovered exit to Materials (range 15) 4078 | -8/Garrison | Lost 3 parts (2u1w) 4083 | -8/Garrison | Installed Relay Interface Framework 4118 | -8/Garrison | Entered Materials 4333 | -8/Materials | Identified exit to Garrison 4333 | -8/Materials | Entered Garrison 4333 | -8/Garrison | Accompanied by 1 ally 4346 | -8/Garrison | Build established: Mutant 4469 | -8/Garrison | Discovered exit to Factory (range 10) 4479 | -8/Garrison | Triggered checkpoint 4502 | -8/Garrison | Learned Factory security intel 4648 | -8/Garrison | Garrison Relay disabled 4649 | -8/Garrison | Triggered checkpoint 4806 | -8/Garrison | Garrison Relay disabled 4815 | -8/Garrison | Triggered checkpoint 4947 | -8/Garrison | Discovered exit to Factory (range 13) 4985 | -8/Garrison | Triggered checkpoint 5016 | -8/Garrison | Garrison Relay disabled 5047 | -8/Garrison | Triggered checkpoint 5090 | -8/Garrison | Expanded RIF knowledge: Program Shield 5110 | -8/Garrison | Discovered exit to Factory (range 14) 5411 | -8/Garrison | Triggered checkpoint 5473 | -8/Garrison | Triggered checkpoint 5500 | -8/Garrison | Garrison Relay disabled 5771 | -8/Garrison | Triggered checkpoint 5936 | -8/Garrison | Entered Factory 5936 | -7/Factory | Accompanied by 6 allies 5936 | -7/Factory | Evolved 2 slots: Utility x2 6046 | -7/Factory | Build established: Bothacker-Mutant 6313 | -7/Factory | Identified exit to Garrison 6336 | -7/Factory | First assault squad dispatched 6344 | -7/Factory | Entered Garrison 6344 | -7/Garrison | Accompanied by 3 allies 6384 | -7/Garrison | Triggered checkpoint 6415 | -7/Garrison | Garrison Relay disabled 6542 | -7/Garrison | Triggered checkpoint 6567 | -7/Garrison | Triggered checkpoint 6586 | -7/Garrison | Triggered checkpoint 6615 | -7/Garrison | Lost 5 allies 6656 | -7/Garrison | Discovered new exit (range 10) 6664 | -7/Garrison | Identified exit to Factory 6696 | -7/Garrison | Triggered checkpoint 6718 | -7/Garrison | Garrison Relay disabled 7617 | -7/Garrison | Discovered exit to Factory (range 10) 7651 | -7/Garrison | Expanded RIF knowledge: Alert ID Control 7674 | -7/Garrison | Triggered checkpoint 7700 | -7/Garrison | Garrison Relay disabled 7715 | -7/Garrison | Learned Factory security intel 7774 | -7/Garrison | Lost 4 parts (2n1u1w) 7938 | -7/Garrison | Discovered exit to Factory (range 75) 7938 | -7/Garrison | Discovered exit to Factory (range 30) 7938 | -7/Garrison | Discovered exit to Factory (range 24) 8000 | -7/Garrison | Triggered checkpoint 8054 | -7/Garrison | Triggered checkpoint 8106 | -7/Garrison | Garrison Relay disabled 8206 | -7/Garrison | Build established: Scavenger-Mutant 8298 | -7/Garrison | Triggered checkpoint 8350 | -7/Garrison | Triggered checkpoint 8374 | -7/Garrison | Garrison Relay disabled 8460 | -7/Garrison | Lost 3 allies 8537 | -7/Garrison | Expanded RIF knowledge: Watcher Feeds 8630 | -7/Garrison | Entered Factory 8895 | -7/Factory | Identified exit to DSF 9138 | -7/Factory | Build established: Botlord-Mutant 9369 | -7/Factory | Identified exit to Garrison 9612 | -7/Factory | Entered Garrison 9764 | -7/Garrison | Triggered checkpoint 9773 | -7/Garrison | Garrison Relay disabled 9928 | -7/Garrison | Triggered checkpoint 10012 | -7/Garrison | Core integrity fell below 50% 10050 | -7/Garrison | Lost 3 parts (3n) 10136 | -7/Garrison | Expanded RIF knowledge: Command Fork 10147 | -7/Garrison | Spotted B-75 Beast 10147 | -7/Garrison | Spotted B-75 Beast 10241 | -7/Garrison | Lost 3 allies 10289 | -7/Garrison | Discovered new exit (range 10) 10318 | -7/Garrison | Garrison Relay disabled 10354 | -7/Garrison | Learned Factory security intel 10502 | -7/Garrison | Triggered checkpoint 10520 | -7/Garrison | Garrison Relay disabled 10704 | -7/Garrison | Heavy support dispatched to Factory 10724 | -7/Garrison | Triggered checkpoint 10746 | -7/Garrison | Discovered new exit (range 14) 10832 | -7/Garrison | Triggered checkpoint 10861 | -7/Garrison | Garrison Relay disabled 10884 | -7/Garrison | Heavy support dispatched to Factory 11054 | -7/Garrison | Triggered checkpoint 11176 | -7/Garrison | Garrison Relay disabled 11198 | -7/Garrison | Lost 3 allies 11198 | -7/Garrison | Garrison Relay disabled 11430 | -7/Garrison | Entered Factory 11430 | -6/Factory | Accompanied by 2 allies 11430 | -6/Factory | Evolved 2 slots: Utility x1, Weapon x1 11541 | -6/Factory | Garrison activated, responded to threat 11614 | -6/Factory | Lost 3 parts (1n1u1w) 11858 | -6/Factory | Self-destructed Last Messages --------------- 11838_ R-10 Processor collects Field Recycling Unit. 11841_ >> Watcher Feeds: Established visual feed link with W-25 Informer. 11841_ W-25 Informer sends out distress signal. 11842_ R-10 Processor collects Welding Torch. 11846_ R-10 Processor collects Hvy. Laser. 11849_ >> Watcher Feeds: Established visual feed link with W-25 Informer. 11849_ R-10 Processor collects Imp. Heat Sink. 11852_ W-25 Informer sends out distress signal. 11853_ R-10 Processor collects Imp. Deuterium Engine. 11854_ Slug penetrates Wall. 11856_ R-10 Processor collects Terrain Scan Processor. 11858_ C-30 ARC bursts open, deploying its payload. 11858_ S-27 Virus unfolds itself. 11858_ K-01 Serf collects debris. Map ----- +----------------------------------------------------+ | # #????????? u #????????? | | ####### #???????? #????????? | | ####### #???????? #????????? | | # ##??????? #????????? | | " """ # ######### #????????? | | " """ #" ] #????????? | | " """ # ! #????????? | | # uk #????????? | | + % #????????? | | # % % % k #????????? | | # ######### ########????????? | | ####### #???##?## kk###?????????????? | | #??## ###w sssk# #?????????????? | | # ?? # sw ########????????? | | #? """" # # ????????? | | # ""S"" #% /h ????????? | | # "" "" # #A h ????????? | | # # # ????????? | | # " # % #? ??????????? | | # " # #? ?????????? | | # " # #?? R ????????? | | + ???# % #??? ??????? | | # ??# #??? k ?????? | | # ?Y# #????#######????? | | #+####### ### "?# g ###+####???????????????? | | # #?# "?# @# #????????????? | | # #?# " # b # ?????????????? | | "" """" # #?# !!! # ! # ?????????????? | | "" """" # #?# !!! +[= # #????????????? | | "" """" # #?# !! #% # #????????????? | | "" """" # #?######### # #????????????? | | "" """" # ########### R # #????????????? | | "" """" # *!%%* # #????????????? | | "" """" # ##+##+##### ###########????????????? | | # ## #% #??????????????????????? | | # ## # #??????????????????????? | | # ## # #??????????????????????? | | ######### ## [ # #??????????????????????? | | ??????###+########### ##########?????????????? | | ??????# # # ?????????????? | | ??????# """ """ """ # # """ ""???????????????? | | ??????# """ """ """ + + """ ""???????????????? | | ??????# """ """ """ # # """ ""???????????????? | | ??????# # # ?????????????? | | ??????# + ##########?????????????? | | ??????#################+#######??????????????????? | | ?????????????????# #??????????????????? | | ?????????????????# #??????????????????? | | ?????????????????# #??????????????????? | | ?????????????????# #??????????????????? | +----------------------------------------------------+ Best States ------------- Heat Dissipation 56 Energy Generation 21 Energy Capacity 310 Matter Stores 300 Matter Capacity 300 Sight Range 16 Terrain Scan Range 16 Terrain Scan Density 10 Armor Coverage 300 Evasion (%) 60 Recoil Reduction 2 Offensive Hacking 10 Defensive Hacking 10 Relay Coupler Types 3 Relay Coupler Value 80 Item Schematics ----------------- None Robot Schematics ------------------ None Fabricated ------------ Nothing Alien Tech Used ----------------- None Achievements -------------- None Challenges ------------ None Game ------ Seed AuthchipExoskeletonWings Manual? 0 Play Time 02:29:23 Cumulative 47.7 hours Start 2024.04.23 @ 20:58:51 End 2024.04.26 @ 13:49:47 Sessions 5 Manual Loads 0 Difficulty Rogue Special Mode None Game No. 39 Rogue 39 Adventurer 0 Explorer 0 Win Type - Total 0 Types 0/0/0/0/0/0/0/0/0 Lore% 21 Gallery% 32 Achievement% 30 Wizard Run 0 Options --------- Layout 1 ASCII 0 Keyboard 1 Movement Numpad Keybinds 1 Fullscreen 1 Font 24/Smallcaps Map View 50x35 Zoom Use 0% Tactical HUD 1 Map Filters NONE Filters NONE Steam 1 RUN: 86b2ae1e-074d-4596-ae2a-80e32df0edee